{"text_format":"1","workbook":"xlsx","n_sheets":9,"sheets":["Лист1","Объекты","Договоры","Помещения","Платежи","Лист3","Объединенная","Итог","Попытки"],"not_rendered":{"charts":0,"images":0,"macros":1,"external_links":0,"defined_names":4,"comments":0,"pivot_tables":2},"unopened":[],"bounds":{"document_bytes":16777216,"sheet_cells":100000,"rows_first":2000,"rows_last":500,"rows_between":2000,"halvings":0,"cell_chars":16384,"cell_head_chars":4096},"cells_cut":0,"cells_raw":0,"read":"whole","date_system":"1900"}

{"sheet":"Лист1","index":0,"n_rows":0,"n_cols":0,"rows_kept":0,"cut":false,"hidden":false,"merged":[]}

{"sheet":"Объекты","index":1,"n_rows":79,"n_cols":11,"rows_kept":79,"cut":false,"hidden":false,"merged":[]}
["Строительный проект","Строительный объект","Платеж 1","Платеж 2","Платеж 3","Платеж 4","Платеж 5","Платеж 6","Платеж 7","Платеж 8","Платеж 9"]
["Гаражная","52-1","Договор","ДДУ","2 этаж","Крыша","Внутренняя отделка","Фасад","Собственность"]
["Гаражная","52-2","Договор","ДДУ","3 этаж","Крыша","Внутренняя отделка","Фасад","Собственность"]
["Заозерная","33","Договор","1 этаж","2 этаж","3 этаж","Крыша","Внутренняя отделка","Фасад","Собственность"]
["Заозерная","35","Договор","1 этаж","2 этаж","3 этаж","Крыша","Внутренняя отделка","Фасад","Собственность"]
["Заозерная","38","Договор","1 этаж","2 этаж","3 этаж","Крыша","Фасад","Внутренняя отделка","Собственность"]
["Заозерная","42","Договор","1 этаж","2 этаж","3 этаж","Крыша","Внутренняя отделка","Фасад","Собственность"]
["Заозерная","Д35","Предварительный договор купли-продажи","2 этаж","Крыша","Уведомление о вводе","Договор купли-продажи"]
["Кораблик","1","Договор","1 этаж","2 этаж","3 этаж","Крыша","Внутренняя отделка","Фасад","Собственность"]
["Кораблик","2","Договор","1 этаж","2 этаж","3 этаж","Крыша","Внутренняя отделка","Фасад","Собственность"]
["Кораблик","3","Договор","1 этаж","2 этаж","3 этаж","Крыша","Внутренняя отделка","Фасад","Собственность"]
["Кораблик","4","Договор","1 этаж","2 этаж","3 этаж","Крыша","Внутренняя отделка","Фасад","Собственность"]
["Кораблик","5","Договор","1 этаж","2 этаж","3 этаж","Крыша","Внутренняя отделка","Фасад","Собственность"]
["КУО","12","Договор","Каркас дома","Внутренняя отделка","Фасад","Собственность"]
["КУО","13","Договор","Каркас дома","Внутренняя отделка","Фасад","Собственность"]
["КУО","14","Договор","Каркас дома","Внутренняя отделка","Фасад","Собственность"]
["КУО","15","Договор","Каркас дома","Внутренняя отделка","Фасад","Собственность"]
["КУО","21","Договор","1 этаж","2 этаж","3 этаж","Крыша","Внутренняя отделка","Фасад","Собственность"]
["КУО","22","Договор","1 этаж","2 этаж","3 этаж","Крыша","Внутренняя отделка","Фасад","Собственность"]
["КУО","23","Договор","1 этаж","2 этаж","3 этаж","Крыша","Внутренняя отделка","Фасад","Собственность"]
["КУО","24","Договор","1 этаж","2 этаж","3 этаж","Крыша","Внутренняя отделка","Фасад","Собственность"]
["КУО","25","Договор","1 этаж","2 этаж","3 этаж","Крыша","Внутренняя отделка","Фасад","Собственность"]
["КУО","26","Договор","1 этаж","2 этаж","3 этаж","Крыша","Внутренняя отделка","Фасад","Собственность"]
["КУО","27","Договор","1 этаж","2 этаж","3 этаж","Крыша","Внутренняя отделка","Фасад","Собственность"]
["КУО","28","Договор","1 этаж","2 этаж","3 этаж","Крыша","Внутренняя отделка","Фасад","Собственность"]
["Некрасовка","1","Договор","1 этаж","2 этаж","3 этаж","Крыша","Фасад","Внутренняя отделка","Собственность"]
["Подворье","1-1","Договор","ДДУ","2 этаж","Крыша","Фасад","Внутренняя отделка","Собственность"]
["Подворье","1-2","Договор","ДДУ","3 этаж","Крыша","Фасад","Внутренняя отделка","Собственность"]
["Подворье","2-1","Договор","1 этаж","2 этаж","3 этаж","Крыша","Фасад","Внутренняя отделка","Собственность"]
["Подворье","2-2","Договор","1 этаж","2 этаж","3 этаж","Крыша","Фасад","Внутренняя отделка","Собственность"]
["Подворье","3","Договор","1 этаж","2 этаж","3 этаж","Крыша","Внутренняя отделка","Фасад","Собственность"]
["СП3","23А","Договор","1 этаж","2 этаж","3 этаж","Крыша","Внутренняя отделка","Фасад","Собственность"]
["СП3","23Б","Договор","1 этаж","2 этаж","3 этаж","Крыша","Внутренняя отделка","Фасад","Собственность"]
["СП3","24А","Договор","1 этаж","2 этаж","3 этаж","Крыша","Внутренняя отделка","Фасад","Собственность"]
["СП3","24Б","Договор","1 этаж","2 этаж","3 этаж","Крыша","Внутренняя отделка","Фасад","Собственность"]
["СП3","26А","Договор","1 этаж","2 этаж","3 этаж","Крыша","Внутренняя отделка","Фасад","Собственность"]
["СП3","26Б","Договор","1 этаж","2 этаж","3 этаж","Крыша","Внутренняя отделка","Фасад","Собственность"]
["СП3","26В","Договор","1 этаж","2 этаж","3 этаж","Крыша","Внутренняя отделка","Фасад","Собственность"]
["СП3","26Г","Договор","1 этаж","2 этаж","3 этаж","Крыша","Внутренняя отделка","Фасад","Собственность"]
["СП3","27А","Договор","1 этаж","2 этаж","3 этаж","Крыша","Внутренняя отделка","Фасад","Собственность"]
["СП3","27Б","Договор","1 этаж","2 этаж","3 этаж","Крыша","Внутренняя отделка","Фасад","Собственность"]
["СП3","27В","Договор","1 этаж","2 этаж","3 этаж","Крыша","Внутренняя отделка","Фасад","Собственность"]
["СП3","27Г","Договор","1 этаж","2 этаж","3 этаж","Крыша","Внутренняя отделка","Фасад","Собственность"]
["СП3","28А","Договор","1 этаж","2 этаж","3 этаж","Крыша","Внутренняя отделка","Фасад","Собственность"]
["СП3","31","Договор","2 этаж","Крыша","Внутренняя отделка","Собственность"]
["СП3","32","Договор","2 этаж","Крыша","Внутренняя отделка","Фасад","Собственность"]
["СП3","33","Договор","1 этаж","2 этаж","3 этаж","Крыша","Внутренняя отделка","Фасад","Собственность"]
["СП3","34","Договор","1 этаж","2 этаж","3 этаж","Крыша","Внутренняя отделка","Фасад","Собственность"]
["СП3","45А","Договор","1 этаж","2 этаж","3 этаж","Крыша","Внутренняя отделка","Фасад","Собственность"]
["СП3","45Б","Договор","1 этаж","2 этаж","3 этаж","Крыша","Внутренняя отделка","Фасад","Собственность"]
["СП3","45В","Договор","1 этаж","2 этаж","3 этаж","Крыша","Внутренняя отделка","Фасад","Собственность"]
["СП3","46А","Договор","1 этаж","2 этаж","3 этаж","Крыша","Внутренняя отделка","Фасад","Собственность"]
["СП3","46Б","Договор","1 этаж","2 этаж","3 этаж","Крыша","Внутренняя отделка","Фасад","Собственность"]
["СП3","46В","Договор","1 этаж","2 этаж","3 этаж","Крыша","Внутренняя отделка","Фасад","Собственность"]
["СП3","47А","Договор","1 этаж","2 этаж","3 этаж","Крыша","Фасад","Внутренняя отделка","Собственность"]
["СП3","47Б","Договор","1 этаж","2 этаж","3 этаж","Крыша","Фасад","Внутренняя отделка","Собственность"]
["СП3","47В","Договор","1 этаж","2 этаж","3 этаж","Крыша","Фасад","Внутренняя отделка","Собственность"]
["СП3","48А","Договор","1 этаж","2 этаж","3 этаж","Крыша","Внутренняя отделка","Фасад","Собственность"]
["СП3","48Б","Договор","1 этаж","2 этаж","3 этаж","Крыша","Внутренняя отделка","Фасад","Собственность"]
["СП3","48В","Договор","1 этаж","2 этаж","3 этаж","Крыша","Внутренняя отделка","Фасад","Собственность"]
["СП3","49А","Договор","1 этаж","2 этаж","3 этаж","Крыша","Внутренняя отделка","Фасад","Собственность"]
["СП3","49Б","Договор","1 этаж","2 этаж","3 этаж","Крыша","Внутренняя отделка","Фасад","Собственность"]
["СП3","49В","Договор","1 этаж","2 этаж","3 этаж","Крыша","Внутренняя отделка","Фасад","Собственность"]
["СП3","50А","Договор","1 этаж","2 этаж","3 этаж","Крыша","Фасад","Внутренняя отделка","Собственность"]
["СП3","50Б","Договор","1 этаж","2 этаж","3 этаж","Крыша","Фасад","Внутренняя отделка","Собственность"]
["СП3","51А","Договор","1 этаж","2 этаж","3 этаж","Крыша","Внутренняя отделка","Фасад","Собственность"]
["СП3","51Б","Договор","1 этаж","2 этаж","3 этаж","Крыша","Внутренняя отделка","Фасад","Собственность"]
["СП3","64А-1","Договор","1 этаж","2 этаж","3 этаж","Крыша","Фасад","Внутренняя отделка","Собственность"]
["СП3","64А-2","Договор","1 этаж","2 этаж","3 этаж","Крыша","Фасад","Внутренняя отделка","Собственность"]
["СП3","64Б-1","Договор","1 этаж","2 этаж","3 этаж","Крыша","Фасад","Внутренняя отделка","Собственность"]
["СП3","64Б-2","Договор","1 этаж","2 этаж","3 этаж","Крыша","Фасад","Внутренняя отделка","Собственность"]
["СП3","65А","Договор","1 этаж","2 этаж","3 этаж","Крыша","Фасад","Внутренняя отделка","Собственность"]
["СП3","65Б","Договор","1 этаж","2 этаж","3 этаж","Крыша","Внутренняя отделка","Фасад","Собственность"]
["СП3","65В","Договор","1 этаж","2 этаж","3 этаж","Крыша","Внутренняя отделка","Фасад","Собственность"]
["СП3","65Г","Договор","1 этаж","2 этаж","3 этаж","Крыша","Внутренняя отделка","Фасад","Собственность"]
["СП3","72А","Договор","1 этаж","2 этаж","3 этаж","Крыша","Внутренняя отделка","Фасад","Собственность"]
["СП3","72Б","Договор","1 этаж","2 этаж","3 этаж","Крыша","Внутренняя отделка","Фасад","Собственность"]
["СП3","72В","Договор","1 этаж","2 этаж","3 этаж","Крыша","Внутренняя отделка","Фасад","Собственность"]
["СП3","82","Договор","1 этаж","2 этаж","3 этаж","Крыша","Внутренняя отделка","Фасад","Собственность"]

{"sheet":"Договоры","index":2,"n_rows":9,"n_cols":7,"rows_kept":9,"cut":false,"hidden":false,"merged":[]}
["Строительный проект","Объект","Помещение","Дата договора","Контрагент","Консультант","Сумма договора"]
["Гаражная","52-1","1","2014-01-01","Абиев А.",null,200000]
["Заозерная","33","2","2014-03-02","Абрамова Т.И.",null,1500000]
["Гаражная","52-2","3","2014-03-03","Абрамова Т.И.",null,180000]
["Кораблик","5","1","2014-02-01","Агарашева Е.М.",null,1200000]
["Заозерная","38","5","2014-07-01","Аветисян М.",null,1000000]
["Кораблик","4","3","2014-08-01","Адам Э.В.",null,950000]
["Гаражная","52-1","5","2014-06-01","Абиев А.",null,2500000]
["Некрасовка","1","1","2014-03-01","Барсукова Н.П.",null,10000]

{"sheet":"Помещения","index":3,"n_rows":16,"n_cols":4,"rows_kept":16,"cut":false,"hidden":false,"merged":[]}
["Строительный проект","Строительный объект","Номер помещения","Фактическая площадь"]
["Гаражная","52-1","1",32]
["Заозерная","33","2",32]
["Гаражная","52-2","3",43]
["Кораблик","5","1",53]
["Заозерная","38","5",60]
["Кораблик","4","3",70]
["Некрасовка","1","1",48]
["Гаражная","52-1","5",25]
["КУО","12","1",32]
["КУО","12","2",44]
["КУО","12","3",32]
["КУО","12","4",32]
["СП3","23А","1",40]
["СП3","23А","2",42]
["СП3","23Б","1",70]

{"sheet":"Платежи","index":4,"n_rows":5,"n_cols":13,"rows_kept":5,"cut":false,"hidden":false,"merged":[]}
["Строительный проект","Строительный объект","Номер помещения","Фактическая площадь","Сумма1","сумма2","сумма3","сумма4","сумма5","сумма6","сумма7","сумма8","сумма9"]
["Гаражная","52-1","1",32]
["Заозерная","33","2",32]
["Гаражная","52-2","3",43]
["Кораблик","5","1",53]

{"sheet":"Лист3","index":5,"n_rows":199,"n_cols":34,"rows_kept":199,"cut":false,"hidden":false,"merged":[]}
["Строительный проект","Строительный объект","Номер помещения","Дата договора","Контрагент","Консультант","Фактическая площадь","Сумма договора","Платеж","Этап","Сумма"]
["Гаражная","52-1","1","2014-01-01","Абиев А.",null,32,200000,"Платеж 1","Договор"]
["Гаражная","52-1","1","2014-01-01","Абиев А.",null,32,200000,"Платеж 2","ДДУ",10000,null,"Сумма по полю Сумма",null,null,null,null,null,null,null,"Этап"]
["Гаражная","52-1","1","2014-01-01","Абиев А.",null,32,200000,"Платеж 3","2 этаж",15000,null,"Строительный проект","Строительный объект","Номер помещения","Дата договора","Контрагент","Консультант","Фактическая площадь","Сумма договора","1 этаж","2 этаж","3 этаж","Внутренняя отделка","ДДУ","Договор","Договор купли-продажи","Крыша","Предварительный договор купли-продажи","Собственность","Уведомление о вводе","Фасад","(пусто)","Общий итог"]
["Гаражная","52-1","1","2014-01-01","Абиев А.",null,32,200000,"Платеж 4","Крыша",null,null,"Гаражная","52-1","1","2014-01-01","Абиев А.","(пусто)",32,200000,null,15000,null,null,10000,null,null,null,null,null,null,null,null,25000]
["Гаражная","52-1","1","2014-01-01","Абиев А.",null,32,200000,"Платеж 5","Внутренняя отделка",null,null,null,null,"5","2014-06-01","Абиев А.","(пусто)",25,2500000,null,50000,null,null,20000,null,null,null,null,null,null,null,null,70000]
["Гаражная","52-1","1","2014-01-01","Абиев А.",null,32,200000,"Платеж 6","Фасад",null,null,null,"52-2","3","2014-03-03","Абрамова Т.И.","(пусто)",43,180000]
["Гаражная","52-1","1","2014-01-01","Абиев А.",null,32,200000,"Платеж 7","Собственность",null,null,"Заозерная","33","2","2014-03-02","Абрамова Т.И.","(пусто)",32,1500000]
["Гаражная","52-1","1","2014-01-01","Абиев А.",null,32,200000,"Платеж 8",null,null,null,null,"35","(пусто)","(пусто)","(пусто)","(пусто)","(пусто)","(пусто)"]
["Гаражная","52-1","1","2014-01-01","Абиев А.",null,32,200000,"Платеж 9",null,null,null,null,"38","5","2014-07-01","Аветисян М.","(пусто)",60,1000000]
["Гаражная","52-1","5","2014-06-01","Абиев А.",null,25,2500000,"Платеж 1","Договор",null,null,null,"42","(пусто)","(пусто)","(пусто)","(пусто)","(пусто)","(пусто)"]
["Гаражная","52-1","5","2014-06-01","Абиев А.",null,25,2500000,"Платеж 2","ДДУ",20000,null,null,"Д35","(пусто)","(пусто)","(пусто)","(пусто)","(пусто)","(пусто)"]
["Гаражная","52-1","5","2014-06-01","Абиев А.",null,25,2500000,"Платеж 3","2 этаж",50000,null,"Кораблик","1","(пусто)","(пусто)","(пусто)","(пусто)","(пусто)","(пусто)"]
["Гаражная","52-1","5","2014-06-01","Абиев А.",null,25,2500000,"Платеж 4","Крыша",null,null,null,"2","(пусто)","(пусто)","(пусто)","(пусто)","(пусто)","(пусто)"]
["Гаражная","52-1","5","2014-06-01","Абиев А.",null,25,2500000,"Платеж 5","Внутренняя отделка",null,null,null,"3","(пусто)","(пусто)","(пусто)","(пусто)","(пусто)","(пусто)"]
["Гаражная","52-1","5","2014-06-01","Абиев А.",null,25,2500000,"Платеж 6","Фасад",null,null,"КУО","26","(пусто)","(пусто)","(пусто)","(пусто)","(пусто)","(пусто)"]
["Гаражная","52-1","5","2014-06-01","Абиев А.",null,25,2500000,"Платеж 7","Собственность",null,null,null,"27","(пусто)","(пусто)","(пусто)","(пусто)","(пусто)","(пусто)"]
["Гаражная","52-1","5","2014-06-01","Абиев А.",null,25,2500000,"Платеж 8",null,null,null,null,"28","(пусто)","(пусто)","(пусто)","(пусто)","(пусто)","(пусто)"]
["Гаражная","52-1","5","2014-06-01","Абиев А.",null,25,2500000,"Платеж 9",null,null,null,"Некрасовка","1","1","2014-03-01","Барсукова Н.П.","(пусто)",48,10000]
["Гаражная","52-2","3","2014-03-03","Абрамова Т.И.",null,43,180000,"Платеж 1","Договор",null,null,"Подворье","1-1","(пусто)","(пусто)","(пусто)","(пусто)","(пусто)","(пусто)"]
["Гаражная","52-2","3","2014-03-03","Абрамова Т.И.",null,43,180000,"Платеж 2","ДДУ",null,null,null,"1-2","(пусто)","(пусто)","(пусто)","(пусто)","(пусто)","(пусто)"]
["Гаражная","52-2","3","2014-03-03","Абрамова Т.И.",null,43,180000,"Платеж 3","3 этаж",null,null,"СП3","65Г","(пусто)","(пусто)","(пусто)","(пусто)","(пусто)","(пусто)"]
["Гаражная","52-2","3","2014-03-03","Абрамова Т.И.",null,43,180000,"Платеж 4","Крыша",null,null,null,"72А","(пусто)","(пусто)","(пусто)","(пусто)","(пусто)","(пусто)"]
["Гаражная","52-2","3","2014-03-03","Абрамова Т.И.",null,43,180000,"Платеж 5","Внутренняя отделка",null,null,null,"72Б","(пусто)","(пусто)","(пусто)","(пусто)","(пусто)","(пусто)"]
["Гаражная","52-2","3","2014-03-03","Абрамова Т.И.",null,43,180000,"Платеж 6","Фасад",null,null,null,"72В","(пусто)","(пусто)","(пусто)","(пусто)","(пусто)","(пусто)"]
["Гаражная","52-2","3","2014-03-03","Абрамова Т.И.",null,43,180000,"Платеж 7","Собственность",null,null,null,"82","(пусто)","(пусто)","(пусто)","(пусто)","(пусто)","(пусто)"]
["Гаражная","52-2","3","2014-03-03","Абрамова Т.И.",null,43,180000,"Платеж 8",null,null,null,"Общий итог",null,null,null,null,null,null,null,null,65000,null,null,30000,null,null,null,null,null,null,null,null,95000]
["Гаражная","52-2","3","2014-03-03","Абрамова Т.И.",null,43,180000,"Платеж 9"]
["Заозерная","33","2","2014-03-02","Абрамова Т.И.",null,32,1500000,"Платеж 1","Договор"]
["Заозерная","33","2","2014-03-02","Абрамова Т.И.",null,32,1500000,"Платеж 2","1 этаж"]
["Заозерная","33","2","2014-03-02","Абрамова Т.И.",null,32,1500000,"Платеж 3","2 этаж"]
["Заозерная","33","2","2014-03-02","Абрамова Т.И.",null,32,1500000,"Платеж 4","3 этаж"]
["Заозерная","33","2","2014-03-02","Абрамова Т.И.",null,32,1500000,"Платеж 5","Крыша"]
["Заозерная","33","2","2014-03-02","Абрамова Т.И.",null,32,1500000,"Платеж 6","Внутренняя отделка"]
["Заозерная","33","2","2014-03-02","Абрамова Т.И.",null,32,1500000,"Платеж 7","Фасад"]
["Заозерная","33","2","2014-03-02","Абрамова Т.И.",null,32,1500000,"Платеж 8","Собственность"]
["Заозерная","33","2","2014-03-02","Абрамова Т.И.",null,32,1500000,"Платеж 9"]
["Заозерная","35",null,null,null,null,null,null,"Платеж 1","Договор"]
["Заозерная","35",null,null,null,null,null,null,"Платеж 2","1 этаж"]
["Заозерная","35",null,null,null,null,null,null,"Платеж 3","2 этаж"]
["Заозерная","35",null,null,null,null,null,null,"Платеж 4","3 этаж"]
["Заозерная","35",null,null,null,null,null,null,"Платеж 5","Крыша"]
["Заозерная","35",null,null,null,null,null,null,"Платеж 6","Внутренняя отделка"]
["Заозерная","35",null,null,null,null,null,null,"Платеж 7","Фасад"]
["Заозерная","35",null,null,null,null,null,null,"Платеж 8","Собственность"]
["Заозерная","35",null,null,null,null,null,null,"Платеж 9"]
["Заозерная","38","5","2014-07-01","Аветисян М.",null,60,1000000,"Платеж 1","Договор"]
["Заозерная","38","5","2014-07-01","Аветисян М.",null,60,1000000,"Платеж 2","1 этаж"]
["Заозерная","38","5","2014-07-01","Аветисян М.",null,60,1000000,"Платеж 3","2 этаж"]
["Заозерная","38","5","2014-07-01","Аветисян М.",null,60,1000000,"Платеж 4","3 этаж"]
["Заозерная","38","5","2014-07-01","Аветисян М.",null,60,1000000,"Платеж 5","Крыша"]
["Заозерная","38","5","2014-07-01","Аветисян М.",null,60,1000000,"Платеж 6","Фасад"]
["Заозерная","38","5","2014-07-01","Аветисян М.",null,60,1000000,"Платеж 7","Внутренняя отделка"]
["Заозерная","38","5","2014-07-01","Аветисян М.",null,60,1000000,"Платеж 8","Собственность"]
["Заозерная","38","5","2014-07-01","Аветисян М.",null,60,1000000,"Платеж 9"]
["Заозерная","42",null,null,null,null,null,null,"Платеж 1","Договор"]
["Заозерная","42",null,null,null,null,null,null,"Платеж 2","1 этаж"]
["Заозерная","42",null,null,null,null,null,null,"Платеж 3","2 этаж"]
["Заозерная","42",null,null,null,null,null,null,"Платеж 4","3 этаж"]
["Заозерная","42",null,null,null,null,null,null,"Платеж 5","Крыша"]
["Заозерная","42",null,null,null,null,null,null,"Платеж 6","Внутренняя отделка"]
["Заозерная","42",null,null,null,null,null,null,"Платеж 7","Фасад"]
["Заозерная","42",null,null,null,null,null,null,"Платеж 8","Собственность"]
["Заозерная","42",null,null,null,null,null,null,"Платеж 9"]
["Заозерная","Д35",null,null,null,null,null,null,"Платеж 1","Предварительный договор купли-продажи"]
["Заозерная","Д35",null,null,null,null,null,null,"Платеж 2","2 этаж"]
["Заозерная","Д35",null,null,null,null,null,null,"Платеж 3","Крыша"]
["Заозерная","Д35",null,null,null,null,null,null,"Платеж 4","Уведомление о вводе"]
["Заозерная","Д35",null,null,null,null,null,null,"Платеж 5","Договор купли-продажи"]
["Заозерная","Д35",null,null,null,null,null,null,"Платеж 6"]
["Заозерная","Д35",null,null,null,null,null,null,"Платеж 7"]
["Заозерная","Д35",null,null,null,null,null,null,"Платеж 8"]
["Заозерная","Д35",null,null,null,null,null,null,"Платеж 9"]
["Кораблик","1",null,null,null,null,null,null,"Платеж 1","Договор"]
["Кораблик","1",null,null,null,null,null,null,"Платеж 2","1 этаж"]
["Кораблик","1",null,null,null,null,null,null,"Платеж 3","2 этаж"]
["Кораблик","1",null,null,null,null,null,null,"Платеж 4","3 этаж"]
["Кораблик","1",null,null,null,null,null,null,"Платеж 5","Крыша"]
["Кораблик","1",null,null,null,null,null,null,"Платеж 6","Внутренняя отделка"]
["Кораблик","1",null,null,null,null,null,null,"Платеж 7","Фасад"]
["Кораблик","1",null,null,null,null,null,null,"Платеж 8","Собственность"]
["Кораблик","1",null,null,null,null,null,null,"Платеж 9"]
["Кораблик","2",null,null,null,null,null,null,"Платеж 1","Договор"]
["Кораблик","2",null,null,null,null,null,null,"Платеж 2","1 этаж"]
["Кораблик","2",null,null,null,null,null,null,"Платеж 3","2 этаж"]
["Кораблик","2",null,null,null,null,null,null,"Платеж 4","3 этаж"]
["Кораблик","2",null,null,null,null,null,null,"Платеж 5","Крыша"]
["Кораблик","2",null,null,null,null,null,null,"Платеж 6","Внутренняя отделка"]
["Кораблик","2",null,null,null,null,null,null,"Платеж 7","Фасад"]
["Кораблик","2",null,null,null,null,null,null,"Платеж 8","Собственность"]
["Кораблик","2",null,null,null,null,null,null,"Платеж 9"]
["Кораблик","3",null,null,null,null,null,null,"Платеж 1","Договор"]
["Кораблик","3",null,null,null,null,null,null,"Платеж 2","1 этаж"]
["Кораблик","3",null,null,null,null,null,null,"Платеж 3","2 этаж"]
["Кораблик","3",null,null,null,null,null,null,"Платеж 4","3 этаж"]
["Кораблик","3",null,null,null,null,null,null,"Платеж 5","Крыша"]
["Кораблик","3",null,null,null,null,null,null,"Платеж 6","Внутренняя отделка"]
["Кораблик","3",null,null,null,null,null,null,"Платеж 7","Фасад"]
["Кораблик","3",null,null,null,null,null,null,"Платеж 8","Собственность"]
["Кораблик","3",null,null,null,null,null,null,"Платеж 9"]
["КУО","26",null,null,null,null,null,null,"Платеж 1","Договор"]
["КУО","26",null,null,null,null,null,null,"Платеж 2","1 этаж"]
["КУО","26",null,null,null,null,null,null,"Платеж 3","2 этаж"]
["КУО","26",null,null,null,null,null,null,"Платеж 4","3 этаж"]
["КУО","26",null,null,null,null,null,null,"Платеж 5","Крыша"]
["КУО","26",null,null,null,null,null,null,"Платеж 6","Внутренняя отделка"]
["КУО","26",null,null,null,null,null,null,"Платеж 7","Фасад"]
["КУО","26",null,null,null,null,null,null,"Платеж 8","Собственность"]
["КУО","26",null,null,null,null,null,null,"Платеж 9"]
["КУО","27",null,null,null,null,null,null,"Платеж 1","Договор"]
["КУО","27",null,null,null,null,null,null,"Платеж 2","1 этаж"]
["КУО","27",null,null,null,null,null,null,"Платеж 3","2 этаж"]
["КУО","27",null,null,null,null,null,null,"Платеж 4","3 этаж"]
["КУО","27",null,null,null,null,null,null,"Платеж 5","Крыша"]
["КУО","27",null,null,null,null,null,null,"Платеж 6","Внутренняя отделка"]
["КУО","27",null,null,null,null,null,null,"Платеж 7","Фасад"]
["КУО","27",null,null,null,null,null,null,"Платеж 8","Собственность"]
["КУО","27",null,null,null,null,null,null,"Платеж 9"]
["КУО","28",null,null,null,null,null,null,"Платеж 1","Договор"]
["КУО","28",null,null,null,null,null,null,"Платеж 2","1 этаж"]
["КУО","28",null,null,null,null,null,null,"Платеж 3","2 этаж"]
["КУО","28",null,null,null,null,null,null,"Платеж 4","3 этаж"]
["КУО","28",null,null,null,null,null,null,"Платеж 5","Крыша"]
["КУО","28",null,null,null,null,null,null,"Платеж 6","Внутренняя отделка"]
["КУО","28",null,null,null,null,null,null,"Платеж 7","Фасад"]
["КУО","28",null,null,null,null,null,null,"Платеж 8","Собственность"]
["КУО","28",null,null,null,null,null,null,"Платеж 9"]
["Некрасовка","1","1","2014-03-01","Барсукова Н.П.",null,48,10000,"Платеж 1","Договор"]
["Некрасовка","1","1","2014-03-01","Барсукова Н.П.",null,48,10000,"Платеж 2","1 этаж"]
["Некрасовка","1","1","2014-03-01","Барсукова Н.П.",null,48,10000,"Платеж 3","2 этаж"]
["Некрасовка","1","1","2014-03-01","Барсукова Н.П.",null,48,10000,"Платеж 4","3 этаж"]
["Некрасовка","1","1","2014-03-01","Барсукова Н.П.",null,48,10000,"Платеж 5","Крыша"]
["Некрасовка","1","1","2014-03-01","Барсукова Н.П.",null,48,10000,"Платеж 6","Фасад"]
["Некрасовка","1","1","2014-03-01","Барсукова Н.П.",null,48,10000,"Платеж 7","Внутренняя отделка"]
["Некрасовка","1","1","2014-03-01","Барсукова Н.П.",null,48,10000,"Платеж 8","Собственность"]
["Некрасовка","1","1","2014-03-01","Барсукова Н.П.",null,48,10000,"Платеж 9"]
["Подворье","1-1",null,null,null,null,null,null,"Платеж 1","Договор"]
["Подворье","1-1",null,null,null,null,null,null,"Платеж 2","ДДУ"]
["Подворье","1-1",null,null,null,null,null,null,"Платеж 3","2 этаж"]
["Подворье","1-1",null,null,null,null,null,null,"Платеж 4","Крыша"]
["Подворье","1-1",null,null,null,null,null,null,"Платеж 5","Фасад"]
["Подворье","1-1",null,null,null,null,null,null,"Платеж 6","Внутренняя отделка"]
["Подворье","1-1",null,null,null,null,null,null,"Платеж 7","Собственность"]
["Подворье","1-1",null,null,null,null,null,null,"Платеж 8"]
["Подворье","1-1",null,null,null,null,null,null,"Платеж 9"]
["Подворье","1-2",null,null,null,null,null,null,"Платеж 1","Договор"]
["Подворье","1-2",null,null,null,null,null,null,"Платеж 2","ДДУ"]
["Подворье","1-2",null,null,null,null,null,null,"Платеж 3","3 этаж"]
["Подворье","1-2",null,null,null,null,null,null,"Платеж 4","Крыша"]
["Подворье","1-2",null,null,null,null,null,null,"Платеж 5","Фасад"]
["Подворье","1-2",null,null,null,null,null,null,"Платеж 6","Внутренняя отделка"]
["Подворье","1-2",null,null,null,null,null,null,"Платеж 7","Собственность"]
["Подворье","1-2",null,null,null,null,null,null,"Платеж 8"]
["Подворье","1-2",null,null,null,null,null,null,"Платеж 9"]
["СП3","65Г",null,null,null,null,null,null,"Платеж 1","Договор"]
["СП3","65Г",null,null,null,null,null,null,"Платеж 2","1 этаж"]
["СП3","65Г",null,null,null,null,null,null,"Платеж 3","2 этаж"]
["СП3","65Г",null,null,null,null,null,null,"Платеж 4","3 этаж"]
["СП3","65Г",null,null,null,null,null,null,"Платеж 5","Крыша"]
["СП3","65Г",null,null,null,null,null,null,"Платеж 6","Внутренняя отделка"]
["СП3","65Г",null,null,null,null,null,null,"Платеж 7","Фасад"]
["СП3","65Г",null,null,null,null,null,null,"Платеж 8","Собственность"]
["СП3","65Г",null,null,null,null,null,null,"Платеж 9"]
["СП3","72А",null,null,null,null,null,null,"Платеж 1","Договор"]
["СП3","72А",null,null,null,null,null,null,"Платеж 2","1 этаж"]
["СП3","72А",null,null,null,null,null,null,"Платеж 3","2 этаж"]
["СП3","72А",null,null,null,null,null,null,"Платеж 4","3 этаж"]
["СП3","72А",null,null,null,null,null,null,"Платеж 5","Крыша"]
["СП3","72А",null,null,null,null,null,null,"Платеж 6","Внутренняя отделка"]
["СП3","72А",null,null,null,null,null,null,"Платеж 7","Фасад"]
["СП3","72А",null,null,null,null,null,null,"Платеж 8","Собственность"]
["СП3","72А",null,null,null,null,null,null,"Платеж 9"]
["СП3","72Б",null,null,null,null,null,null,"Платеж 1","Договор"]
["СП3","72Б",null,null,null,null,null,null,"Платеж 2","1 этаж"]
["СП3","72Б",null,null,null,null,null,null,"Платеж 3","2 этаж"]
["СП3","72Б",null,null,null,null,null,null,"Платеж 4","3 этаж"]
["СП3","72Б",null,null,null,null,null,null,"Платеж 5","Крыша"]
["СП3","72Б",null,null,null,null,null,null,"Платеж 6","Внутренняя отделка"]
["СП3","72Б",null,null,null,null,null,null,"Платеж 7","Фасад"]
["СП3","72Б",null,null,null,null,null,null,"Платеж 8","Собственность"]
["СП3","72Б",null,null,null,null,null,null,"Платеж 9"]
["СП3","72В",null,null,null,null,null,null,"Платеж 1","Договор"]
["СП3","72В",null,null,null,null,null,null,"Платеж 2","1 этаж"]
["СП3","72В",null,null,null,null,null,null,"Платеж 3","2 этаж"]
["СП3","72В",null,null,null,null,null,null,"Платеж 4","3 этаж"]
["СП3","72В",null,null,null,null,null,null,"Платеж 5","Крыша"]
["СП3","72В",null,null,null,null,null,null,"Платеж 6","Внутренняя отделка"]
["СП3","72В",null,null,null,null,null,null,"Платеж 7","Фасад"]
["СП3","72В",null,null,null,null,null,null,"Платеж 8","Собственность"]
["СП3","72В",null,null,null,null,null,null,"Платеж 9"]
["СП3","82",null,null,null,null,null,null,"Платеж 1","Договор"]
["СП3","82",null,null,null,null,null,null,"Платеж 2","1 этаж"]
["СП3","82",null,null,null,null,null,null,"Платеж 3","2 этаж"]
["СП3","82",null,null,null,null,null,null,"Платеж 4","3 этаж"]
["СП3","82",null,null,null,null,null,null,"Платеж 5","Крыша"]
["СП3","82",null,null,null,null,null,null,"Платеж 6","Внутренняя отделка"]
["СП3","82",null,null,null,null,null,null,"Платеж 7","Фасад"]
["СП3","82",null,null,null,null,null,null,"Платеж 8","Собственность"]
["СП3","82",null,null,null,null,null,null,"Платеж 9"]

{"sheet":"Объединенная","index":6,"n_rows":23,"n_cols":26,"rows_kept":23,"cut":false,"hidden":false,"merged":[]}
["Строительный проект","Строительный объект","Номер помещения","Дата договора","Контрагент","Консультант","Фактическая площадь","Сумма договора","Платеж 1","Платеж 2","Платеж 3","Платеж 4","Платеж 5","Платеж 6","Платеж 7","Платеж 8","Платеж 9","Сумма1","Сумма2","Сумма3","Сумма4","Сумма5","Сумма6","Сумма7","Сумма8","Сумма9"]
["Гаражная","52-1","1","2014-01-01","Абиев А.",null,32,200000,"Договор","ДДУ","2 этаж","Крыша","Внутренняя отделка","Фасад","Собственность"]
["Гаражная","52-1","5","2014-06-01","Абиев А.",null,25,2500000,"Договор","ДДУ","2 этаж","Крыша","Внутренняя отделка","Фасад","Собственность"]
["Гаражная","52-2","3","2014-03-03","Абрамова Т.И.",null,43,180000,"Договор","ДДУ","3 этаж","Крыша","Внутренняя отделка","Фасад","Собственность"]
["Заозерная","33","2","2014-03-02","Абрамова Т.И.",null,32,1500000,"Договор","1 этаж","2 этаж","3 этаж","Крыша","Внутренняя отделка","Фасад","Собственность"]
["Заозерная","35",null,null,null,null,null,null,"Договор","1 этаж","2 этаж","3 этаж","Крыша","Внутренняя отделка","Фасад","Собственность"]
["Заозерная","38","5","2014-07-01","Аветисян М.",null,60,1000000,"Договор","1 этаж","2 этаж","3 этаж","Крыша","Фасад","Внутренняя отделка","Собственность"]
["Заозерная","42",null,null,null,null,null,null,"Договор","1 этаж","2 этаж","3 этаж","Крыша","Внутренняя отделка","Фасад","Собственность"]
["Заозерная","Д35",null,null,null,null,null,null,"Предварительный договор купли-продажи","2 этаж","Крыша","Уведомление о вводе","Договор купли-продажи"]
["Кораблик","1",null,null,null,null,null,null,"Договор","1 этаж","2 этаж","3 этаж","Крыша","Внутренняя отделка","Фасад","Собственность"]
["Кораблик","2",null,null,null,null,null,null,"Договор","1 этаж","2 этаж","3 этаж","Крыша","Внутренняя отделка","Фасад","Собственность"]
["Кораблик","3",null,null,null,null,null,null,"Договор","1 этаж","2 этаж","3 этаж","Крыша","Внутренняя отделка","Фасад","Собственность"]
["КУО","26",null,null,null,null,null,null,"Договор","1 этаж","2 этаж","3 этаж","Крыша","Внутренняя отделка","Фасад","Собственность"]
["КУО","27",null,null,null,null,null,null,"Договор","1 этаж","2 этаж","3 этаж","Крыша","Внутренняя отделка","Фасад","Собственность"]
["КУО","28",null,null,null,null,null,null,"Договор","1 этаж","2 этаж","3 этаж","Крыша","Внутренняя отделка","Фасад","Собственность"]
["Некрасовка","1","1","2014-03-01","Барсукова Н.П.",null,48,10000,"Договор","1 этаж","2 этаж","3 этаж","Крыша","Фасад","Внутренняя отделка","Собственность"]
["Подворье","1-1",null,null,null,null,null,null,"Договор","ДДУ","2 этаж","Крыша","Фасад","Внутренняя отделка","Собственность"]
["Подворье","1-2",null,null,null,null,null,null,"Договор","ДДУ","3 этаж","Крыша","Фасад","Внутренняя отделка","Собственность"]
["СП3","65Г",null,null,null,null,null,null,"Договор","1 этаж","2 этаж","3 этаж","Крыша","Внутренняя отделка","Фасад","Собственность"]
["СП3","72А",null,null,null,null,null,null,"Договор","1 этаж","2 этаж","3 этаж","Крыша","Внутренняя отделка","Фасад","Собственность"]
["СП3","72Б",null,null,null,null,null,null,"Договор","1 этаж","2 этаж","3 этаж","Крыша","Внутренняя отделка","Фасад","Собственность"]
["СП3","72В",null,null,null,null,null,null,"Договор","1 этаж","2 этаж","3 этаж","Крыша","Внутренняя отделка","Фасад","Собственность"]
["СП3","82",null,null,null,null,null,null,"Договор","1 этаж","2 этаж","3 этаж","Крыша","Внутренняя отделка","Фасад","Собственность"]

{"sheet":"Итог","index":7,"n_rows":23,"n_cols":18,"rows_kept":23,"cut":false,"hidden":false,"merged":[[18,6,20,6],[18,7,18,15],[19,7,19,15],[6,7,6,15],[4,1,4,15],[11,1,11,15],[12,1,14,1],[12,2,14,2],[12,3,14,3],[12,4,14,4],[12,5,14,5],[12,6,14,6],[12,7,12,15],[5,1,7,1],[5,2,7,2],[5,3,7,3],[18,1,20,1],[18,2,20,2],[18,3,20,3],[18,4,20,4],[18,5,20,5],[5,17,6,17],[1,1,1,2],[1,3,1,6],[13,7,13,15],[17,1,17,15],[5,4,7,4],[5,5,7,5],[5,6,7,6],[5,7,5,15]]}
[]
[null,"Строительный проект",null,"Строительный объект т.е. дом"]
[]
[]
[null,"Гаражная 52-1"]
[null,"№ Помещения","Контрагент","Консультант","Дата договора","Площадь квартиры","Сумма договора","График платежей",null,null,null,null,null,null,null,null,null,"Данные из таблицы объекты для каждого объекта разные"]
[null,null,null,null,null,null,null,"Платежи"]
[null,null,null,null,null,null,null,"Договор","ДДУ","2 этаж","Крыша","Внутренняя отделка","Фасад","Собственность",null,null,null,"Платеж - это собственно некоторый завершенный этап работы, за который надо платить"]
[null,"1","Абиев А.",null,"2014-01-01",32,200000]
[null,"5","Абиев А.",null,"2014-06-01",25,2500000]
[null,"ИТОГО",null,null,null,{"$f":"SUM(F9:F10)","v":57},{"$f":"SUM(G9:G10)","v":2700000},{"$f":"SUM(H9:H10)","v":0},0,0,0,0,0,0,0,0]
[null,"Гаражная 52-2"]
[null,"№ Помещения","Контрагент","Консультант","Дата договора","Площадь квартиры","Сумма договора","График платежей"]
[null,null,null,null,null,null,null,"Платежи"]
[null,null,null,null,null,null,null,"Договор","ДДУ","2 этаж","Крыша","Внутренняя отделка","Фасад","Собственность",null,null,null,"Суммы из таблицы платежи"]
[null,"3","Абрамова Т.И.",null,"2014-03-03",43,180000,null,null,null,null,null,null,null,null,null,null,"Это сама сумма которую надо заплатить за завершенный этап работы"]
[null,"ИТОГО",null,null,null,{"$f":"SUM(F16:F16)","v":43},180000,0,0,0,0,0,0,0,0,0]
[null,"Заозерная 33"]
[null,"№ Помещения","Контрагент","Консультант","Дата договора","Площадь квартиры","Сумма договора","График платежей"]
[null,null,null,null,null,null,null,"Платежи"]
[null,null,null,null,null,null,null,"Договор","1 этаж","2 этаж","3 этаж","Крыша","Внутренняя отделка","Фасад","Собственность",null,null,"Проблема в том как подложить ячейки с суммами ПОД ячейки платеж а не рядом, как делает сводная таблица"]
[null,"2","Абрамова Т.И.",null,"2014-03-02",32,1500000]
[null,"ИТОГО",null,null,null,{"$f":"SUM(F22:F22)","v":32},1500000,0,0,0,0,0,0,0,0,0]

{"sheet":"Попытки","index":8,"n_rows":54,"n_cols":26,"rows_kept":54,"cut":false,"hidden":false,"merged":[[0,13,1,21]]}
[null,null,null,null,null,"Это",null,"Должно быть ниже",null,null,"А это","Должно располагаться под платежами",null,"В итоге будет видно, что при заключении договора внесена Сумма1, … за 2-й этаж внесена сумма 3, …. за оформление в собственность внесена сумма 7 или не внесена"]
[]
["Строительный проект","Строительный объект","Номер помещения","Контрагент","Дата договора","Консультант","Фактическая площадь","Платеж 1","Платеж 2","Платеж 3","Платеж 4","Платеж 5","Платеж 6","Платеж 7","Платеж 8","Платеж 9","Сумма1","Сумма2","Сумма3","Сумма4","Сумма5","Сумма6","Сумма7","Сумма8","Сумма9","Сумма по полю Сумма договора"]
["Гаражная","52-1","1","Абиев А.","2014-01-01","(пусто)",32,"Договор","ДДУ","2 этаж","Крыша","Внутренняя отделка","Фасад","Собственность","(пусто)","(пусто)","(пусто)","(пусто)","(пусто)","(пусто)","(пусто)","(пусто)","(пусто)","(пусто)","(пусто)",200000]
[null,null,"5","Абиев А.","2014-06-01","(пусто)",25,"Договор","ДДУ","2 этаж","Крыша","Внутренняя отделка","Фасад","Собственность","(пусто)","(пусто)","(пусто)","(пусто)","(пусто)","(пусто)","(пусто)","(пусто)","(пусто)","(пусто)","(пусто)",2500000]
[null,"52-1 Итог",null,null,null,null,null,null,null,null,null,null,null,null,null,null,null,null,null,null,null,null,null,null,null,2700000]
[null,"52-2","3","Абрамова Т.И.","2014-03-03","(пусто)",43,"Договор","ДДУ","3 этаж","Крыша","Внутренняя отделка","Фасад","Собственность","(пусто)","(пусто)","(пусто)","(пусто)","(пусто)","(пусто)","(пусто)","(пусто)","(пусто)","(пусто)","(пусто)",180000]
[null,"52-2 Итог",null,null,null,null,null,null,null,null,null,null,null,null,null,null,null,null,null,null,null,null,null,null,null,180000]
["Гаражная Итог",null,null,null,null,null,null,null,null,null,null,null,null,null,null,null,null,null,null,null,null,null,null,null,null,2880000]
["Заозерная","33","2","Абрамова Т.И.","2014-03-02","(пусто)",32,"Договор","1 этаж","2 этаж","3 этаж","Крыша","Внутренняя отделка","Фасад","Собственность","(пусто)","(пусто)","(пусто)","(пусто)","(пусто)","(пусто)","(пусто)","(пусто)","(пусто)","(пусто)",1500000]
[null,"33 Итог",null,null,null,null,null,null,null,null,null,null,null,null,null,null,null,null,null,null,null,null,null,null,null,1500000]
[null,"35","(пусто)","(пусто)","(пусто)","(пусто)","(пусто)","Договор","1 этаж","2 этаж","3 этаж","Крыша","Внутренняя отделка","Фасад","Собственность","(пусто)","(пусто)","(пусто)","(пусто)","(пусто)","(пусто)","(пусто)","(пусто)","(пусто)","(пусто)"]
[null,"35 Итог"]
[null,"38","5","Аветисян М.","2014-07-01","(пусто)",60,"Договор","1 этаж","2 этаж","3 этаж","Крыша","Фасад","Внутренняя отделка","Собственность","(пусто)","(пусто)","(пусто)","(пусто)","(пусто)","(пусто)","(пусто)","(пусто)","(пусто)","(пусто)",1000000]
[null,"38 Итог",null,null,null,null,null,null,null,null,null,null,null,null,null,null,null,null,null,null,null,null,null,null,null,1000000]
[null,"42","(пусто)","(пусто)","(пусто)","(пусто)","(пусто)","Договор","1 этаж","2 этаж","3 этаж","Крыша","Внутренняя отделка","Фасад","Собственность","(пусто)","(пусто)","(пусто)","(пусто)","(пусто)","(пусто)","(пусто)","(пусто)","(пусто)","(пусто)"]
[null,"42 Итог"]
[null,"Д35","(пусто)","(пусто)","(пусто)","(пусто)","(пусто)","Предварительный договор купли-продажи","2 этаж","Крыша","Уведомление о вводе","Договор купли-продажи","(пусто)","(пусто)","(пусто)","(пусто)","(пусто)","(пусто)","(пусто)","(пусто)","(пусто)","(пусто)","(пусто)","(пусто)","(пусто)"]
[null,"Д35 Итог"]
["Заозерная Итог",null,null,null,null,null,null,null,null,null,null,null,null,null,null,null,null,null,null,null,null,null,null,null,null,2500000]
["Кораблик","1","(пусто)","(пусто)","(пусто)","(пусто)","(пусто)","Договор","1 этаж","2 этаж","3 этаж","Крыша","Внутренняя отделка","Фасад","Собственность","(пусто)","(пусто)","(пусто)","(пусто)","(пусто)","(пусто)","(пусто)","(пусто)","(пусто)","(пусто)"]
[null,"1 Итог"]
[null,"2","(пусто)","(пусто)","(пусто)","(пусто)","(пусто)","Договор","1 этаж","2 этаж","3 этаж","Крыша","Внутренняя отделка","Фасад","Собственность","(пусто)","(пусто)","(пусто)","(пусто)","(пусто)","(пусто)","(пусто)","(пусто)","(пусто)","(пусто)"]
[null,"2 Итог"]
[null,"3","(пусто)","(пусто)","(пусто)","(пусто)","(пусто)","Договор","1 этаж","2 этаж","3 этаж","Крыша","Внутренняя отделка","Фасад","Собственность","(пусто)","(пусто)","(пусто)","(пусто)","(пусто)","(пусто)","(пусто)","(пусто)","(пусто)","(пусто)"]
[null,"3 Итог"]
["Кораблик Итог"]
["КУО","26","(пусто)","(пусто)","(пусто)","(пусто)","(пусто)","Договор","1 этаж","2 этаж","3 этаж","Крыша","Внутренняя отделка","Фасад","Собственность","(пусто)","(пусто)","(пусто)","(пусто)","(пусто)","(пусто)","(пусто)","(пусто)","(пусто)","(пусто)"]
[null,"26 Итог"]
[null,"27","(пусто)","(пусто)","(пусто)","(пусто)","(пусто)","Договор","1 этаж","2 этаж","3 этаж","Крыша","Внутренняя отделка","Фасад","Собственность","(пусто)","(пусто)","(пусто)","(пусто)","(пусто)","(пусто)","(пусто)","(пусто)","(пусто)","(пусто)"]
[null,"27 Итог"]
[null,"28","(пусто)","(пусто)","(пусто)","(пусто)","(пусто)","Договор","1 этаж","2 этаж","3 этаж","Крыша","Внутренняя отделка","Фасад","Собственность","(пусто)","(пусто)","(пусто)","(пусто)","(пусто)","(пусто)","(пусто)","(пусто)","(пусто)","(пусто)"]
[null,"28 Итог"]
["КУО Итог"]
["Некрасовка","1","1","Барсукова Н.П.","2014-03-01","(пусто)",48,"Договор","1 этаж","2 этаж","3 этаж","Крыша","Фасад","Внутренняя отделка","Собственность","(пусто)","(пусто)","(пусто)","(пусто)","(пусто)","(пусто)","(пусто)","(пусто)","(пусто)","(пусто)",10000]
[null,"1 Итог",null,null,null,null,null,null,null,null,null,null,null,null,null,null,null,null,null,null,null,null,null,null,null,10000]
["Некрасовка Итог",null,null,null,null,null,null,null,null,null,null,null,null,null,null,null,null,null,null,null,null,null,null,null,null,10000]
["Подворье","1-1","(пусто)","(пусто)","(пусто)","(пусто)","(пусто)","Договор","ДДУ","2 этаж","Крыша","Фасад","Внутренняя отделка","Собственность","(пусто)","(пусто)","(пусто)","(пусто)","(пусто)","(пусто)","(пусто)","(пусто)","(пусто)","(пусто)","(пусто)"]
[null,"1-1 Итог"]
[null,"1-2","(пусто)","(пусто)","(пусто)","(пусто)","(пусто)","Договор","ДДУ","3 этаж","Крыша","Фасад","Внутренняя отделка","Собственность","(пусто)","(пусто)","(пусто)","(пусто)","(пусто)","(пусто)","(пусто)","(пусто)","(пусто)","(пусто)","(пусто)"]
[null,"1-2 Итог"]
["Подворье Итог"]
["СП3","65Г","(пусто)","(пусто)","(пусто)","(пусто)","(пусто)","Договор","1 этаж","2 этаж","3 этаж","Крыша","Внутренняя отделка","Фасад","Собственность","(пусто)","(пусто)","(пусто)","(пусто)","(пусто)","(пусто)","(пусто)","(пусто)","(пусто)","(пусто)"]
[null,"65Г Итог"]
[null,"72А","(пусто)","(пусто)","(пусто)","(пусто)","(пусто)","Договор","1 этаж","2 этаж","3 этаж","Крыша","Внутренняя отделка","Фасад","Собственность","(пусто)","(пусто)","(пусто)","(пусто)","(пусто)","(пусто)","(пусто)","(пусто)","(пусто)","(пусто)"]
[null,"72А Итог"]
[null,"72Б","(пусто)","(пусто)","(пусто)","(пусто)","(пусто)","Договор","1 этаж","2 этаж","3 этаж","Крыша","Внутренняя отделка","Фасад","Собственность","(пусто)","(пусто)","(пусто)","(пусто)","(пусто)","(пусто)","(пусто)","(пусто)","(пусто)","(пусто)"]
[null,"72Б Итог"]
[null,"72В","(пусто)","(пусто)","(пусто)","(пусто)","(пусто)","Договор","1 этаж","2 этаж","3 этаж","Крыша","Внутренняя отделка","Фасад","Собственность","(пусто)","(пусто)","(пусто)","(пусто)","(пусто)","(пусто)","(пусто)","(пусто)","(пусто)","(пусто)"]
[null,"72В Итог"]
[null,"82","(пусто)","(пусто)","(пусто)","(пусто)","(пусто)","Договор","1 этаж","2 этаж","3 этаж","Крыша","Внутренняя отделка","Фасад","Собственность","(пусто)","(пусто)","(пусто)","(пусто)","(пусто)","(пусто)","(пусто)","(пусто)","(пусто)","(пусто)"]
[null,"82 Итог"]
["СП3 Итог"]
["Общий итог",null,null,null,null,null,null,null,null,null,null,null,null,null,null,null,null,null,null,null,null,null,null,null,null,5390000]